[Event "-chT Youth Countries 2019"]
[Site "Wuerzburg"]
[Date "2019.10.03"]
[Round "3.4"]
[White "Muller, Magnus"]
[Black "Bakiev, Diyor"]
[Result "1-0"]
[ECO "D00"]
[WhiteElo "1478"]
[BlackElo "2088"]
[Annotator "NA"]
[PlyCount "99"]
[EventDate "2019.10.02"]
[EventType "team-tourn"]
[EventRounds "7"]
[EventCountry "GER"]
[SourceTitle "playchess.com"]
[Source "ChessBase"]
[SourceQuality "1"]
[WhiteTeam "Thüringen"]
[BlackTeam "Hessen"]
[TimeControl "40/5400+30:1800+30"]

1. d4 {[%emt 0:00:00]} d5 {[%emt 0:00:00]} 2. Bf4 {[%emt 0:00:15]} c5 {[%emt 0:00:20]} 3. e3 {[%emt 0:00:05]} cxd4 {[%emt 0:00:16]} 4. exd4 {[%emt 0:00:07]} Nc6 {[%emt 0:00:12]} 5. c3 {[%emt 0:01:46]} Bf5 {[%emt 0:01:05]} 6. Nf3 {[%emt 0:02:12]} e6 {[%emt 0:00:34]} 7. Na3 {[%emt 0:07:57]} f6 {[%emt 0:09:37]} 8. Nh4 {[%emt 0:05:28]} Bxa3 {[%emt 0:44:08]} 9. bxa3 {[%emt 0:02:08]} Be4 {[%emt 0:03:54]} 10. f3 {[%emt 0:10:45]} Qa5 {[%emt 0:11:34]} 11. Bd2 {[%emt 0:08:51]} Bg6 {[%emt 0:04:32]} 12. Nxg6 {[%emt 0:04:15]} hxg6 {[%emt 0:00:05]} 13. Qb1 {[%emt 0:03:32]} Nge7 {[%emt 0:02:43]} 14. Bd3 {[%emt 0:13:53]} Kf7 {[%emt 0:02:16]} 15. f4 {[%emt 0:01:56]} Qxa3 {[%emt 0:06:34]} 16. Qxb7 Rab8 {[%emt 0:01:04]} 17. Qa6 {[%emt 0:01:03]} Qd6 18. O-O {[%emt 0:02:15]} Rb6 {[%emt 0:02:59]} 19. Qa4 {[%emt 0:00:06]} Rb2 {[%emt 0:01:22]} 20. Bc1 {[%emt 0:02:06]} Rbb8 {[%emt 0:00:58]} 21. Ba3 {[%emt 0:01:11]} Qc7 {[%emt 0:00:07]} 22. Rf2 {[%emt 0:01:54]} g5 {[%emt 0:00:31]} 23. Bc1 {[%emt 0:03:53]} f5 {[%emt 0:01:01]} 24. g3 {[%emt 0:00:37]} g4 {[%emt 0:01:02]} 25. Ba3 {[%emt 0:01:52]} Ng8 {[%emt 0:02:32]} 26. Bc5 {[%emt 0:01:07]} Nf6 {[%emt 0:00:26]} 27. Rc2 {[%emt 0:00:34]} Ne4 {[%emt 0:01:09]} 28. Bxe4 {[%emt 0:00:36]} dxe4 {[%emt 0:00:37]} 29. Rd1 {[%emt 0:00:47]} Rhd8 {[%emt 0:01:11]} 30. c4 {[%emt 0:01:37]} e5 {[%emt 0:01:09]} 31. d5 {[%emt 0:06:45]} exf4 {[%emt 0:00:07]} 32. gxf4 {[%emt 0:01:27]} g5 {[%emt 0:01:00]} 33. Rf1 {[%emt 0:01:05]} Ne5 {[%emt 0:00:30]} 34. Qxa7 {[%emt 0:02:25]} Rb7 {[%emt 0:00:52]} 35. Qa3 {[%emt 0:03:48]} Nf3+ 36. Kh1 {[%emt 0:00:58]} Qxf4 {[%emt 0:00:55]} 37. Qa6 {[%emt 0:00:12]} Rbd7 {[%emt 0:00:36]} 38. Qe6+ {[%emt 0:00:09]} Kg7 {[%emt 0:00:07]} 39. Be7 {[%emt 0:00:46]} Rd6 {[%emt 0:00:48]} 40. Bxd6 {[%emt 0:01:27]} Rxd6 {[%emt 0:00:02]} 41. Qe7+ {[%emt 0:30:33]} Kg6 {[%emt 0:06:58]} 42. c5 {[%emt 0:00:00]} Ra6 {[%emt 0:08:16]} 43. c6 {[%emt 0:00:00]} Rb6 {[%emt 0:04:57]} 44. Qe6+ {[%emt 0:00:00]} Kh7 {[%emt 0:04:11]} 45. Qd7+ {[%emt 0:00:00]} Kh6 {[%emt 0:01:04]} 46. c7 {[%emt 0:00:00]} Nh4 {[%emt 0:02:09]} 47. Rc6+ {[%emt 0:00:00]} Ng6 {[%emt 0:00:14]} 48. Rxf4 {[%emt 0:00:00]} Rb1+ {[%emt 0:00:04]} 49. Kg2 {[%emt 0:00:00]} Rb2+ {[%emt 0:00:11]} 50. Rf2 {[%emt 0:00:00] normal} 1-0

[Event "-chT Youth Countries 2019"]
[Site "Wuerzburg"]
[Date "2019.10.03"]
[Round "3.5"]
[White "Haack, Kevin"]
[Black "Nguyen, Ha Thanh"]
[Result "1/2-1/2"]
[ECO "A20"]
[WhiteElo "2044"]
[BlackElo "1998"]
[Annotator "NA"]
[PlyCount "217"]
[EventDate "2019.10.02"]
[EventType "team-tourn"]
[EventRounds "7"]
[EventCountry "GER"]
[SourceTitle "playchess.com"]
[Source "ChessBase"]
[SourceQuality "1"]
[WhiteTeam "Hessen"]
[BlackTeam "Thüringen"]
[TimeControl "40/5400+30:1800+30"]

1. c4 {[%emt 0:00:00]} e5 {[%emt 0:00:00]} 2. g3 {[%emt 0:00:00]} Nf6 {[%emt 0:00:00]} 3. Bg2 {[%emt 0:00:02]} d5 {[%emt 0:00:06]} 4. cxd5 {[%emt 0:00:06]} Nxd5 {[%emt 0:00:05]} 5. Nc3 {[%emt 0:00:24]} Nb6 {[%emt 0:00:13]} 6. Nf3 {[%emt 0:00:39]} Nc6 {[%emt 0:00:09]} 7. d3 {[%emt 0:00:16]} Be7 {[%emt 0:00:15]} 8. O-O {[%emt 0:00:18]} O-O {[%emt 0:00:20]} 9. Rb1 {[%emt 0:00:13]} Be6 {[%emt 0:01:09]} 10. Bd2 {[%emt 0:01:18]} f6 {[%emt 0:03:17]} 11. a3 {[%emt 0:03:26]} Re8 {[%emt 0:03:10]} 12. b4 {[%emt 0:04:40]} a5 {[%emt 0:06:52]} 13. Ne4 {[%emt 0:15:31]} axb4 {[%emt 0:07:35]} 14. axb4 {[%emt 0:00:24]} Qc8 {[%emt 0:03:29]} 15. e3 {[%emt 0:07:45]} Rd8 {[%emt 0:07:47]} 16. b5 {[%emt 0:04:41]} Na7 {[%emt 0:23:04]} 17. Bb4 {[%emt 0:07:50]} Bxb4 {[%emt 0:06:35]} 18. Rxb4 {[%emt 0:00:09]} Nd5 {[%emt 0:01:50]} 19. Rb2 {[%emt 0:00:41]} Bf7 {[%emt 0:03:05]} 20. Qc1 {[%emt 0:04:06]} b6 {[%emt 0:07:16]} 21. d4 {[%emt 0:02:09]} exd4 {[%emt 0:08:28]} 22. Nxd4 {[%emt 0:00:12]} Qd7 {[%emt 0:02:41]} 23. Rd1 {[%emt 0:01:24]} Rac8 {[%emt 0:02:47]} 24. Nc6 {[%emt 0:10:22]} Nxc6 25. bxc6 {[%emt 0:00:05]} Qe7 {[%emt 0:03:04]} 26. Rbd2 {[%emt 0:01:23]} Nb4 {[%emt 0:03:50]} 27. Rd7 {[%emt 0:04:09]} Qf8 {[%emt 0:00:37]} 28. Bh3 {[%emt 0:06:35]} Bd5 {[%emt 0:02:48]} 29. R1xd5 {[%emt 0:00:44]} Nxd5 {[%emt 0:00:23]} 30. Rxd5 {[%emt 0:03:42]} Rxd5 {[%emt 0:00:11]} 31. Be6+ {[%emt 0:00:07]} Kh8 {[%emt 0:00:05]} 32. Bxd5 {[%emt 0:00:07]} Qe7 {[%emt 0:00:55]} 33. Qc4 {[%emt 0:01:11]} Rd8 {[%emt 0:00:56]} 34. Nc3 {[%emt 0:00:37]} Qe5 {[%emt 0:01:45]} 35. Qd4 {[%emt 0:02:47]} Qe7 {[%emt 0:00:48]} 36. e4 {[%emt 0:01:56]} h6 {[%emt 0:00:55]} 37. Nb5 {[%emt 0:00:28]} Qe8 {[%emt 0:00:56]} 38. Nxc7 {[%emt 0:01:31]} Qxc6 {[%emt 0:00:15]} 39. Bxc6 {[%emt 0:00:49]} Rxd4 {[%emt 0:00:01]} 40. Bd5 {[%emt 0:00:28]} Kh7 {[%emt 0:00:57]} 41. Kg2 {[%emt 0:31:17]} Rd2 {[%emt 0:03:23]} 42. Kf3 {[%emt 0:00:00]} Rb2 {[%emt 0:02:49]} 43. Ne6 {[%emt 0:00:00]} g5 {[%emt 0:07:48]} 44. Ke3 {[%emt 0:00:00]} b5 {[%emt 0:03:27]} 45. Nc5 {[%emt 0:00:00]} Rc2 {[%emt 0:01:09]} 46. Nd3 {[%emt 0:00:00]} Kg7 {[%emt 0:00:47]} 47. Kd4 {[%emt 0:00:00]} Kf8 {[%emt 0:03:58]} 48. Bb3 {[%emt 0:00:00]} Re2 {[%emt 0:00:38]} 49. Bd5 {[%emt 0:00:00]} Rc2 {[%emt 0:01:14]} 50. e5 {[%emt 0:00:00]} fxe5+ {[%emt 0:01:13]} 51. Kxe5 {[%emt 0:00:00]} Rd2 {[%emt 0:02:45]} 52. Be4 {[%emt 0:00:00]} Kg7 {[%emt 0:02:15]} 53. Kd4 {[%emt 0:00:00]} Re2 {[%emt 0:00:54]} 54. Bc6 {[%emt 0:00:00]} b4 {[%emt 0:01:07]} 55. Ba4 {[%emt 0:00:00]} Kf6 {[%emt 0:00:21]} 56. Bd1 {[%emt 0:00:00]} Rd2 {[%emt 0:00:22]} 57. Bb3 {[%emt 0:00:00]} Re2 {[%emt 0:00:34]} 58. h3 {[%emt 0:00:00]} Kf5 {[%emt 0:01:17]} 59. g4+ {[%emt 0:00:10]} Kf6 {[%emt 0:00:14]} 60. Ba4 {[%emt 0:02:03]} Ke7 {[%emt 0:01:25]} 61. Kc4 {[%emt 0:03:35]} Rd2 {[%emt 0:01:10]} 62. Bb5 {[%emt 0:00:08]} Rd1 {[%emt 0:00:34]} 63. Bc6 {[%emt 0:02:31]} Rd2 {[%emt 0:00:33]} 64. Be4 {[%emt 0:00:14]} Re2 {[%emt 0:00:34]} 65. Bf5 {[%emt 0:00:06]} Kf6 {[%emt 0:00:49]} 66. Kxb4 {[%emt 0:00:13]} Ra2 {[%emt 0:00:43]} 67. Kc3 {[%emt 0:00:11]} Ra1 {[%emt 0:00:16]} 68. Be4 {[%emt 0:00:08]} Ra2 {[%emt 0:00:36]} 69. Kd4 {[%emt 0:00:08]} Re2 {[%emt 0:00:41]} 70. Bf3 {[%emt 0:00:27]} Rc2 {[%emt 0:00:09]} 71. Ke3 {[%emt 0:00:13]} Rc3 {[%emt 0:00:28]} 72. Be4 {[%emt 0:00:26]} Ra3 {[%emt 0:00:26]} 73. Kf3 {[%emt 0:00:18]} Rc3 {[%emt 0:00:21]} 74. Kg2 {[%emt 0:00:15]} Rc4 {[%emt 0:00:21]} 75. Bf3 {[%emt 0:00:10]} Rd4 {[%emt 0:00:16]} 76. Nc1 {[%emt 0:00:09]} Ke5 {[%emt 0:00:57]} 77. Ne2 {[%emt 0:00:07]} Rd3 {[%emt 0:00:22]} 78. Ng3 {[%emt 0:00:53]} Kf4 {[%emt 0:00:35]} 79. Be2 {[%emt 0:00:25]} Rd2 {[%emt 0:00:38]} 80. Bf1 {[%emt 0:00:19]} Rb2 {[%emt 0:00:48]} 81. Nf5 {[%emt 0:00:47]} h5 {[%emt 0:00:26]} 82. Ne7 {[%emt 0:01:43]} hxg4 {[%emt 0:00:17]} 83. Ng6+ {[%emt 0:00:05]} Kf5 {[%emt 0:00:23]} 84. Bd3+ {[%emt 0:00:03]} Kf6 {[%emt 0:00:11]} 85. hxg4 {[%emt 0:00:05]} Rd2 {[%emt 0:00:37]} 86. Bf5 {[%emt 0:00:15]} Rd8 {[%emt 0:00:39]} 87. Kg3 {[%emt 0:00:49]} Rg8 {[%emt 0:00:49]} 88. Kf3 {[%emt 0:01:19]} Re8 {[%emt 0:00:23]} 89. Kg3 {[%emt 0:00:58]} Rg8 {[%emt 0:00:03]} 90. Nh4 {[%emt 0:00:25]} gxh4+ {[%emt 0:00:28]} 91. Kxh4 {[%emt 0:00:06]} Rh8+ {[%emt 0:00:36]} 92. Kg3 {[%emt 0:00:05]} Rb8 {[%emt 0:00:35]} 93. Kf4 {[%emt 0:00:27]} Rb4+ {[%emt 0:00:42]} 94. Be4 {[%emt 0:00:04]} Rb5 {[%emt 0:00:16]} 95. f3 {[%emt 0:00:19]} Ra5 {[%emt 0:00:17]} 96. Kg3 {[%emt 0:00:17]} Ra3 {[%emt 0:00:44]} 97. Kh4 {[%emt 0:00:13]} Ra5 {[%emt 0:00:38]} 98. Bc2 {[%emt 0:01:11]} Rc5 {[%emt 0:00:35]} 99. Bh7 {[%emt 0:00:34]} Rc4 {[%emt 0:01:43]} 100. Bd3 {[%emt 0:00:25]} Rd4 {[%emt 0:00:11]} 101. Be4 {[%emt 0:00:04]} Rb4 {[%emt 0:00:37]} 102. g5+ {[%emt 0:00:25]} Kg7 {[%emt 0:00:10]} 103. Kg3 {[%emt 0:01:23]} Rc4 {[%emt 0:00:33]} 104. Bf5 {[%emt 0:00:08]} Rc3 {[%emt 0:00:40]} 105. Kg4 {[%emt 0:00:07]} Rc4+ {[%emt 0:00:23]} 106. f4 {[%emt 0:00:05]} Rc1 {[%emt 0:00:13]} 107. Be4 {[%emt 0:00:15]} Rg1+ {[%emt 0:00:40]} 108. Kf5 {[%emt 0:00:06]} Rg3 {[%emt 0:00:16]} 109. Ke5 {[%emt 0:00:17] normal} 1/2-1/2

[Event "-chT Youth Countries 2019"]
[Site "Wuerzburg"]
[Date "2019.10.03"]
[Round "3.5"]
[White "Arnhold, Steffi"]
[Black "Farokhi, Keyvan"]
[Result "1-0"]
[ECO "B19"]
[WhiteElo "2042"]
[BlackElo "2018"]
[Annotator "NA"]
[PlyCount "69"]
[EventDate "2019.10.02"]
[EventType "team-tourn"]
[EventRounds "7"]
[EventCountry "GER"]
[SourceTitle "playchess.com"]
[Source "ChessBase"]
[SourceQuality "1"]
[WhiteTeam "Sachsen"]
[BlackTeam "Schleswig-Holstein"]
[TimeControl "40/5400+30:1800+30"]

1. e4 {[%emt 0:00:00]} c6 {[%emt 0:00:00]} 2. d4 {[%emt 0:00:00]} d5 {[%emt 0:00:00]} 3. Nc3 {[%emt 0:00:00]} dxe4 {[%emt 0:00:00]} 4. Nxe4 {[%emt 0:00:00]} Bf5 {[%emt 0:00:00]} 5. Ng3 {[%emt 0:00:07]} Bg6 {[%emt 0:00:00]} 6. h4 {[%emt 0:00:16]} h6 {[%emt 0:00:01]} 7. Nf3 {[%emt 0:00:18]} Nd7 {[%emt 0:00:08]} 8. h5 {[%emt 0:00:30]} Bh7 {[%emt 0:00:01]} 9. Bd3 {[%emt 0:00:26]} Bxd3 {[%emt 0:00:07]} 10. Qxd3 {[%emt 0:00:13]} e6 {[%emt 0:00:05]} 11. Bd2 {[%emt 0:00:29]} Ngf6 {[%emt 0:00:17]} 12. O-O-O {[%emt 0:00:42]} Be7 {[%emt 0:00:15]} 13. Kb1 {[%emt 0:01:04]} O-O {[%emt 0:00:15]} 14. Ne4 {[%emt 0:01:09]} Nxe4 {[%emt 0:00:38]} 15. Qxe4 {[%emt 0:00:08]} Nf6 {[%emt 0:00:01]} 16. Qe2 {[%emt 0:00:10]} Qd5 {[%emt 0:00:19]} 17. Be3 {[%emt 0:01:25]} Ng4 {[%emt 0:02:39]} 18. Bc1 {[%emt 0:01:26]} b5 {[%emt 0:04:38]} 19. Ne5 {[%emt 0:08:43]} Nf6 {[%emt 0:02:31]} 20. g4 {[%emt 0:07:05]} c5 {[%emt 0:27:22]} 21. f3 {[%emt 0:15:32]} cxd4 {[%emt 0:04:12]} 22. g5 {[%emt 0:04:20]} hxg5 {[%emt 0:01:15]} 23. Bxg5 {[%emt 0:00:33]} Nd7 {[%emt 0:15:42]} 24. Bxe7 {[%emt 0:06:31]} Nxe5 {[%emt 0:00:10]} 25. Bxf8 {[%emt 0:05:48]} Kxf8 {[%emt 0:01:22]} 26. h6 {[%emt 0:06:38]} gxh6 {[%emt 0:01:28]} 27. Rh5 {[%emt 0:00:35]} f5 {[%emt 0:00:28]} 28. Rxh6 {[%emt 0:01:59]} Kf7 {[%emt 0:04:13]} 29. f4 {[%emt 0:09:55]} Ng4 {[%emt 0:01:03]} 30. Rh7+ {[%emt 0:03:09]} Kg6 {[%emt 0:00:21]} 31. Rh4 b4 {[%emt 0:06:56]} 32. Qd3 {[%emt 0:13:57]} Ne3 {[%emt 0:02:06]} 33. Rg1+ {[%emt 0:02:24]} Kf6 {[%emt 0:00:16]} 34. Rh6+ {[%emt 0:00:24]} Ke7 {[%emt 0:01:02] normal} 35. Rgg6 {[%emt 0:04:49] normal} 1-0

[Event "-chT Youth Countries 2019"]
[Site "Wuerzburg"]
[Date "2019.10.03"]
[Round "3.5"]
[White "Reitz, Theresa"]
[Black "Roste, Hugo"]
[Result "1-0"]
[ECO "B23"]
[WhiteElo "1935"]
[BlackElo "1339"]
[Annotator "NA"]
[PlyCount "111"]
[EventDate "2019.10.02"]
[EventType "team-tourn"]
[EventRounds "7"]
[EventCountry "GER"]
[SourceTitle "playchess.com"]
[Source "ChessBase"]
[SourceQuality "1"]
[WhiteTeam "Rheinland-Pfalz"]
[BlackTeam "Mecklenburg-Vorpommern"]
[TimeControl "40/5400+30:1800+30"]

1. e4 {[%emt 0:00:00]} c5 {[%emt 0:00:00]} 2. Nc3 {[%emt 0:00:00]} e6 {[%emt 0:00:00]} 3. Nge2 {[%emt 0:00:29]} a6 {[%emt 0:00:33]} 4. g3 {[%emt 0:00:41]} Qc7 {[%emt 0:01:28]} 5. Bg2 {[%emt 0:00:28]} Nc6 {[%emt 0:00:36]} 6. O-O {[%emt 0:03:57]} Nf6 {[%emt 0:00:43]} 7. h3 {[%emt 0:02:33]} Be7 {[%emt 0:02:55]} 8. d3 {[%emt 0:01:43]} O-O {[%emt 0:01:17]} 9. f4 {[%emt 0:03:32]} d6 {[%emt 0:02:28]} 10. f5 {[%emt 0:05:02]} e5 {[%emt 0:03:13]} 11. g4 {[%emt 0:06:28]} h6 {[%emt 0:01:36]} 12. Ng3 {[%emt 0:02:50]} Nh7 {[%emt 0:01:51]} 13. Nh5 {[%emt 0:06:03]} f6 {[%emt 0:03:36]} 14. h4 {[%emt 0:05:47]} b5 {[%emt 0:04:50]} 15. Nd5 {[%emt 0:12:20]} Qb7 {[%emt 0:02:33]} 16. g5 {[%emt 0:16:38]} fxg5 {[%emt 0:04:12]} 17. Nxe7+ {[%emt 0:06:42]} Qxe7 {[%emt 0:00:53]} 18. hxg5 {[%emt 0:01:56]} Nxg5 {[%emt 0:03:57]} 19. Qg4 {[%emt 0:01:09]} Kf7 {[%emt 0:06:42]} 20. c3 {[%emt 0:04:57]} Ke8 {[%emt 0:01:45]} 21. Qh4 {[%emt 0:03:25]} Ra7 {[%emt 0:03:06]} 22. Qg3 {[%emt 0:08:59]} b4 {[%emt 0:07:00]} 23. Be3 {[%emt 0:01:30]} Kd8 {[%emt 0:05:37]} 24. Rf2 {[%emt 0:00:51]} Nh7 {[%emt 0:03:23]} 25. a3 {[%emt 0:03:41]} bxc3 {[%emt 0:01:53]} 26. bxc3 {[%emt 0:00:01]} Nf6 {[%emt 0:00:48]} 27. Nxf6 {[%emt 0:00:35]} Rxf6 {[%emt 0:01:02]} 28. Rb2 {[%emt 0:00:54]} Rb7 {[%emt 0:01:07]} 29. Rab1 {[%emt 0:00:10]} Rf7 {[%emt 0:03:45]} 30. Bf3 {[%emt 0:00:23]} Qf6 {[%emt 0:01:44]} 31. Bh5 {[%emt 0:00:50]} Rxb2 {[%emt 0:01:20]} 32. Rxb2 {[%emt 0:00:24]} Rb7 {[%emt 0:00:21]} 33. Rg2 {[%emt 0:00:46]} Na7 {[%emt 0:05:12]} 34. a4 {[%emt 0:00:17]} Nc6 {[%emt 0:04:46]} 35. Be2 {[%emt 0:00:22]} Ke8 {[%emt 0:04:58]} 36. Qg6+ {[%emt 0:00:44]} Qxg6 {[%emt 0:01:45]} 37. Rxg6 {[%emt 0:00:02]} Rd7 {[%emt 0:02:40]} 38. f6 {[%emt 0:00:53]} Kf8 {[%emt 0:04:00]} 39. fxg7+ {[%emt 0:00:26]} Kg8 {[%emt 0:00:13]} 40. Bxh6 {[%emt 0:00:41]} Nd8 {[%emt 0:01:43]} 41. Bd1 {[%emt 0:07:29]} Nf7 {[%emt 0:00:51]} 42. Bb3 {[%emt 0:00:13]} a5 {[%emt 0:00:18]} 43. Bc4 {[%emt 0:03:10]} Bb7 {[%emt 0:01:36]} 44. Re6 {[%emt 0:02:38]} Kh7 {[%emt 0:02:17]} 45. Bd2 {[%emt 0:11:34]} Bc6 {[%emt 0:02:07]} 46. Rg6 {[%emt 0:01:30]} Kg8 {[%emt 0:01:00]} 47. Bb3 {[%emt 0:00:11]} Ba8 {[%emt 0:02:36]} 48. Kh2 {[%emt 0:01:52]} Bb7 {[%emt 0:01:39]} 49. Be3 {[%emt 0:01:32]} Bc8 {[%emt 0:00:50]} 50. Kg3 {[%emt 0:01:28]} Rb7 {[%emt 0:02:27]} 51. Bd5 {[%emt 0:00:16]} Rd7 {[%emt 0:01:35]} 52. Bh6 {[%emt 0:00:16]} Bb7 {[%emt 0:00:44]} 53. Bxf7+ {[%emt 0:02:11]} Rxf7 {[%emt 0:00:24]} 54. Rxd6 {[%emt 0:00:11]} Kh7 {[%emt 0:00:46]} 55. Rd8 {[%emt 0:00:16]} Kxh6 {[%emt 0:00:16]} 56. g8=Q {[%emt 0:00:11] normal} 1-0

[Event "-chT Youth Countries 2019"]
[Site "Wuerzburg"]
[Date "2019.10.03"]
[Round "3.5"]
[White "Bashylina, Luisa"]
[Black "Stockmann, Till"]
[Result "0-1"]
[ECO "B41"]
[WhiteElo "1933"]
[BlackElo "1884"]
[Annotator "NA"]
[PlyCount "78"]
[EventDate "2019.10.02"]
[EventType "team-tourn"]
[EventRounds "7"]
[EventCountry "GER"]
[SourceTitle "playchess.com"]
[Source "ChessBase"]
[SourceQuality "1"]
[WhiteTeam "Nordrhein-Westfalen"]
[BlackTeam "Sachsen-Anhalt"]
[TimeControl "40/5400+30:1800+30"]

1. e4 {[%emt 0:00:00]} c5 {[%emt 0:00:00]} 2. Nf3 {[%emt 0:00:00]} e6 {[%emt 0:00:00]} 3. d4 {[%emt 0:00:00]} cxd4 {[%emt 0:00:00]} 4. Nxd4 {[%emt 0:00:00]} a6 {[%emt 0:00:09]} 5. g3 {[%emt 0:01:04]} Nf6 {[%emt 0:05:15]} 6. Bg2 {[%emt 0:00:08]} Qc7 {[%emt 0:01:57]} 7. O-O {[%emt 0:00:32]} Nc6 {[%emt 0:06:17]} 8. Nb3 {[%emt 0:07:41]} Be7 {[%emt 0:04:43]} 9. f4 {[%emt 0:00:48]} d6 {[%emt 0:00:10]} 10. a4 {[%emt 0:02:30]} O-O {[%emt 0:02:58]} 11. Nc3 {[%emt 0:00:52]} Rb8 {[%emt 0:03:05]} 12. g4 {[%emt 0:09:17]} h6 {[%emt 0:12:11]} 13. Be3 {[%emt 0:08:31]} b6 {[%emt 0:05:38]} 14. Qe2 {[%emt 0:13:58]} Bb7 {[%emt 0:05:58]} 15. g5 {[%emt 0:02:31]} hxg5 {[%emt 0:02:15]} 16. fxg5 {[%emt 0:00:27]} Nh7 {[%emt 0:00:46]} 17. g6 {[%emt 0:07:23]} fxg6 {[%emt 0:04:49]} 18. Qc4 {[%emt 0:04:02]} Qd7 {[%emt 0:12:10]} 19. Bh3 {[%emt 0:04:26]} Bc8 {[%emt 0:00:52]} 20. Nd5 {[%emt 0:02:39]} Bd8 {[%emt 0:08:58]} 21. Rxf8+ {[%emt 0:08:28]} Nxf8 {[%emt 0:02:46]} 22. Qc3 {[%emt 0:03:49]} Qb7 {[%emt 0:03:26]} 23. Nb4 {[%emt 0:04:29]} Ne5 {[%emt 0:01:16]} 24. Bg2 {[%emt 0:01:35]} Bf6 {[%emt 0:01:46]} 25. Bd4 {[%emt 0:01:55]} Bd7 {[%emt 0:03:18]} 26. Qg3 {[%emt 0:02:46]} g5 {[%emt 0:03:22]} 27. Nd3 {[%emt 0:04:18]} Nfg6 {[%emt 0:01:06]} 28. Nxe5 {[%emt 0:00:30]} Nxe5 {[%emt 0:00:10]} 29. Be3 {[%emt 0:01:53]} Qc7 {[%emt 0:02:16]} 30. Nd4 {[%emt 0:00:59]} Nc4 {[%emt 0:00:44]} 31. b4 {[%emt 0:01:39]} Nxe3 {[%emt 0:00:40]} 32. Qxe3 {[%emt 0:00:06]} Qc4 {[%emt 0:00:14]} 33. c3 {[%emt 0:01:03]} Rc8 {[%emt 0:00:19]} 34. Ra3 {[%emt 0:00:27]} Bxd4 {[%emt 0:00:45]} 35. cxd4 {[%emt 0:02:30]} Qxb4 {[%emt 0:00:24]} 36. Rb3 {[%emt 0:00:20]} Qxa4 {[%emt 0:00:31]} 37. Rxb6 {[%emt 0:00:27]} Qa1+ {[%emt 0:00:05]} 38. Bf1 {[%emt 0:00:36]} Bb5 {[%emt 0:00:19]} 39. Qh3 {[%emt 0:00:39]} Qxd4+ {[%emt 0:00:47] normal} 0-1

[Event "-chT Youth Countries 2019"]
[Site "Wuerzburg"]
[Date "2019.10.03"]
[Round "3.5"]
[White "Moenster, Madita"]
[Black "Zhou, Lepu Coco"]
[Result "1-0"]
[ECO "C89"]
[WhiteElo "1916"]
[BlackElo "1739"]
[Annotator "NA"]
[PlyCount "105"]
[EventDate "2019.10.02"]
[EventType "team-tourn"]
[EventRounds "7"]
[EventCountry "GER"]
[SourceTitle "playchess.com"]
[Source "ChessBase"]
[SourceQuality "1"]
[WhiteTeam "Niedersachsen"]
[BlackTeam "Berlin"]
[TimeControl "40/5400+30:1800+30"]

1. e4 {[%emt 0:00:00]} e5 {[%emt 0:00:00]} 2. Nf3 {[%emt 0:00:00]} Nc6 {[%emt 0:00:00]} 3. Bb5 {[%emt 0:00:01]} a6 {[%emt 0:00:00]} 4. Ba4 {[%emt 0:00:06]} Nf6 {[%emt 0:00:03]} 5. O-O {[%emt 0:00:06]} Be7 {[%emt 0:00:08]} 6. Re1 {[%emt 0:00:06]} b5 {[%emt 0:00:17]} 7. Bb3 {[%emt 0:00:06]} O-O {[%emt 0:00:52]} 8. c3 {[%emt 0:00:23]} d5 {[%emt 0:00:35]} 9. exd5 {[%emt 0:01:57]} Nxd5 {[%emt 0:00:08]} 10. Nxe5 {[%emt 0:02:48]} Nxe5 {[%emt 0:00:10]} 11. Rxe5 {[%emt 0:00:04]} c6 {[%emt 0:00:07]} 12. d3 {[%emt 0:00:35]} Bd6 {[%emt 0:00:14]} 13. Re1 {[%emt 0:01:35]} Qh4 {[%emt 0:00:21]} 14. g3 {[%emt 0:00:50]} Qh3 {[%emt 0:00:46]} 15. Re4 {[%emt 0:02:49]} Nf6 {[%emt 0:03:49]} 16. Rh4 {[%emt 0:01:54]} Qf5 {[%emt 0:00:30]} 17. Nd2 {[%emt 0:03:26]} g5 {[%emt 0:07:08]} 18. Rh6 {[%emt 0:01:23]} Ng4 {[%emt 0:00:28]} 19. Ne4 {[%emt 0:01:15]} Nxh6 {[%emt 0:01:58]} 20. Nxd6 {[%emt 0:01:41]} Qh3 {[%emt 0:00:19]} 21. Qf3 {[%emt 0:06:30]} Be6 {[%emt 0:07:04]} 22. Ne4 {[%emt 0:08:49]} Ng4 {[%emt 0:11:53]} 23. Nf6+ {[%emt 0:10:37]} Kh8 {[%emt 0:00:20]} 24. Nxg4 {[%emt 0:07:52]} Qxg4 {[%emt 0:02:10]} 25. Qxg4 {[%emt 0:06:01]} Bxg4 {[%emt 0:00:16]} 26. Bxg5 {[%emt 0:00:27]} f6 {[%emt 0:00:57]} 27. Be3 {[%emt 0:02:35]} Rfe8 {[%emt 0:02:04]} 28. Kg2 {[%emt 0:04:28]} Be6 {[%emt 0:00:19]} 29. Bxe6 {[%emt 0:08:50]} Rxe6 {[%emt 0:00:09]} 30. Re1 {[%emt 0:00:40]} Rd8 {[%emt 0:01:04]} 31. d4 {[%emt 0:01:54]} Rde8 {[%emt 0:00:23]} 32. Kf1 {[%emt 0:00:50]} f5 {[%emt 0:01:22]} 33. Bd2 {[%emt 0:01:01]} Rxe1+ {[%emt 0:00:32]} 34. Bxe1 {[%emt 0:00:06]} Kg7 {[%emt 0:00:15]} 35. b3 {[%emt 0:04:24]} Rd8 {[%emt 0:01:13]} 36. Ke2 {[%emt 0:05:04]} Kg6 {[%emt 0:00:23]} 37. Bd2 {[%emt 0:04:01]} b4 {[%emt 0:00:20]} 38. Kd3 {[%emt 0:02:56]} bxc3 {[%emt 0:00:31]} 39. Kxc3 {[%emt 0:01:18]} Rd5 {[%emt 0:00:11]} 40. Kc4 {[%emt 0:01:58]} Kf6 {[%emt 0:05:07]} 41. Bb4 {[%emt 0:09:33]} f4 {[%emt 0:00:41]} 42. Bc5 {[%emt 0:08:48]} Rh5 {[%emt 0:02:03]} 43. h4 {[%emt 0:02:07]} Rd5 {[%emt 0:00:16]} 44. Kb4 {[%emt 0:04:34]} Kf5 {[%emt 0:00:50]} 45. Ka5 {[%emt 0:01:04]} fxg3 {[%emt 0:00:27]} 46. fxg3 {[%emt 0:00:06]} Kg4 {[%emt 0:00:45]} 47. Kb6 {[%emt 0:00:14]} Kxg3 {[%emt 0:00:50]} 48. Kxc6 {[%emt 0:00:13]} Rd8 {[%emt 0:01:13]} 49. d5 {[%emt 0:01:35]} Rc8+ {[%emt 0:00:54]} 50. Kb6 {[%emt 0:00:30]} Rb8+ {[%emt 0:00:53]} 51. Kc7 {[%emt 0:01:06]} Re8 {[%emt 0:01:24]} 52. d6 {[%emt 0:00:46]} Re5 {[%emt 0:00:23]} 53. b4 {[%emt 0:01:07] normal} 1-0